Cogmind - Beta 16 @@@ ROGUE MODE // 2025.11.03 @ 19:59:21 Player: 3.14 Result: Destroyed by Autobeam Turret with Autobeam Performance ------------- Evolutions (0) 0 Regions Visited (2) 400 Robots Destroyed (25) 125 Value Destroyed (642) 642 Prototype IDs (3) 60 Alien Tech Used (0) 0 Bonus (0) 0 TOTAL SCORE: 1227 Bonus ------- None Cogmind --------- Core Integrity 0/250 Matter 245/300 Energy 190/200 System Corruption 0% Temperature Cool (6) Movement Rolling (135) Ox3 Location -10/Subcaves Parts ------- > --- POWER (1) -------- Subdweller Power Source > --- PROPULSION (2) --- Light Treads Armored Wheel > --- UTILITY (2) ------ High-capacity Storage Unit > --- WEAPON (2) ------- Light Assault Rifle > --- INVENTORY (20) --- Light Ion Engine Light Treads Aluminum Leg Aluminum Leg Armored Wheel Armored Wheel Armored Wheel Heat Sink Small Storage Unit Huge Storage Unit Transport Network Coupler Hacking Suite EM Pulse Gun Small Laser Light Assault Rifle Light Assault Rifle Barrage Gun Grenade Launcher Grenade Launcher Maul Peak State ------------ > --- POWER ------------ Subdweller Power Source > --- PROPULSION ------- Light Treads Armored Wheel > --- UTILITY ---------- High-capacity Storage Unit > --- WEAPON ----------- Light Assault Rifle Barrage Gun > --- INVENTORY -------- Light Ion Engine Light Treads Aluminum Leg Aluminum Leg Armored Wheel Armored Wheel Armored Wheel Heat Sink Small Storage Unit Huge Storage Unit Transport Network Coupler Hacking Suite EM Pulse Gun Small Laser Light Assault Rifle Light Assault Rifle Grenade Launcher Grenade Launcher Maul [Rating: 12] Favorites ----------- Power Ion Engine Engine Ion Engine Propulsion Light Treads Treads Light Treads Wheel Wheel Utility High-capacity Storage Unit Device Seismic Detector Storage High-capacity Storage Unit Weapon Light Assault Rifle Energy Gun Small Laser Ballistic Gun Light Assault Rifle Launcher Grenade Launcher Build | -11 -10 -10 ------- Run | Yrd Mat Sub Slots Evolved . | . . . Power . | . . . Propulsion . | . . . Utility . | . . . Weapon . | . . . Parts Attached 17 | 8 4 5 Power 3 | 1 1 1 Engine 3 | 1 1 1 Core . | . . . Reactor . | . . . Propulsion 5 | 2 2 1 Treads 3 | 2 1 . Leg . | . . . Wheel 2 | . 1 1 Hover . | . . . Flight . | . . . Utility 3 | 2 1 . Device 1 | 1 . . Storage 2 | 1 1 . Processor . | . . . Hackware . | . . . Protection . | . . . Artifact . | . . . Weapon 6 | 3 . 3 Energy Gun 2 | 2 . . Energy Cannon . | . . . Ballistic Gun 3 | 1 . 2 Ballistic Cannon . | . . . Launcher 1 | . . 1 Special Weapon . | . . . Impact Weapon . | . . . Slashing Weapon . | . . . Piercing Weapon . | . . . Special Melee Weapon . | . . . Unidentified Prototypes . | . . . Parts Lost 4 | . 3 1 Power 2 | . 1 1 Propulsion 1 | . 1 . Utility 1 | . 1 . Weapon . | . . . Highest Loss Streak 2 | . 2 1 To Critical Strikes . | . . . Average Backups 13 | 3 13 18 Power . | . . 1 Propulsion 4 | 1 4 6 Utility 3 | . 3 5 Weapon 4 | 1 4 6 Tool/Special . | . . . Unused Backups 14 | . 1 13 Power 1 | . . 1 Propulsion 5 | . . 5 Utility 4 | . . 4 Weapon 4 | . 1 3 Tool/Special . | . . . Average Slot Usage (%) 86 | . 87 84 Engine 13 | . 14 13 Treads 26 | . 26 27 Device 2 | . 3 . Storage 14 | . 14 14 Energy Gun 9 | . 14 . Ballistic Gun 18 | . 14 27 Peak Build Rating 12 | 7 8 12 Average Rating 7 | 5 7 8 On Entrance 5 | . 7 8 Avg Prop Armor Cover (%) 13 | . 14 13 Naked Turns . | . . . Heaviest Build 49 | 13 48 49 Greatest Support 40 | 40 40 40 Greatest Overweight (x) 4 | . 4 4 Average Overweight (x) 1 | . 1 1 Largest Inventory Capacity 20 | 8 20 20 Average Capacity 18 | 7 19 20 Most Carried 20 | 5 18 20 Average Carried 13 | 3 13 18 Final Capacity 20 | 8 20 20 Final Carried 20 | 5 18 20 Class Distribution -------------------- 100% | Mutant Dominant Class ---------------- Mutant | -10/Materials Mutant | -10/Subcaves Resources | -11 -10 -10 ----------- Run | Yrd Mat Sub Matter Collected 523 | 289 101 133 Remotely . | . . . Salvage Created 990 | 126 667 197 Parts 53 | 6 36 11 Haulers Intercepted 1 | . 1 . Recyclers Shooed 1 | . 1 . Parts Field Recycled . | . . . Retrieved Matter . | . . . Parts Self-Destructed 15 | . . 15 Prevented . | . . . Parts Restored . | . . . Kills | -11 -10 -10 ------- Run | Yrd Mat Sub Combat Hostiles Destroyed 18 | . 13 5 Guns 17 | . 13 4 AOE 1 | . . 1 Classes Destroyed 8 | 2 5 1 Worker 1 | . 1 . Tunneler 2 | 2 . . Hauler 1 | . 1 . Recycler 2 | 1 1 . Operator 1 | . 1 . Swarmer 3 | . 3 . Grunt 12 | . 10 2 Subdweller 3 | . . 3 Best Kill Streak 6 | 1 6 2 Combat Bots Only 6 | . 6 2 Max Kills in Single Turn 2 | 1 2 1 Gunslinging 1 | . 1 . Exploded 1 | . . 1 Melee . | . . . Uniques/NPCs Destroyed . | . . . Combat | -11 -10 -10 -------- Run | Yrd Mat Sub Hostile Shots Fired 103 | . 58 45 Missed 27 | . 11 16 Hits 76 | . 47 29 Projectile 76 | . 47 29 AOE 1 | . . 1 Critical Strikes 1 | . 1 . Damage Taken 1130 | . 558 572 Core 258 | . 122 136 Absorbed by Shields . | . . . Regen/Repaired (Parts) 80 | . 80 . Core Remaining (%) 100 | 100 . . Volleys Fired 100 | 12 56 32 Largest 2 | 2 2 2 Hottest 60 | 60 60 48 Shots Fired 196 | 24 110 62 Gun 194 | 24 110 60 Cannon . | . . . Launcher 2 | . . 2 Special . | . . . Kinetic 128 | 12 56 60 Thermal 66 | 12 54 . Explosive 2 | . . 2 Electromagnetic . | . . . Robot Hit Streak 11 | 3 11 8 Robot Miss Streak 3 | 2 3 2 Penetration Max . | . . . Secondary Targets 3 | . 2 1 Max Gunslinging Chain 1 | . 1 1 Shots Hit Robots 137 | 14 78 45 Core Hits 57 | 4 38 15 Critical Kills . | . . . Critical Parts Destroyed . | . . . Critical Strikes . | . . . Melee Attacks . | . . . Impact . | . . . Slashing . | . . . Piercing . | . . . Sneak Attacks . | . . . Combat Hostiles . | . . . Follow-up Attacks . | . . . Damage Inflicted 1520 | 136 830 554 Guns 1436 | 134 787 515 Cannons . | . . . Explosions 39 | . . 39 Melee . | . . . Ramming 45 | 2 43 . Kinetic 893 | 56 322 515 Thermal 543 | 78 465 . Explosive 39 | . . 39 Electromagnetic . | . . . Impact . | . . . Slashing . | . . . Piercing . | . . . Highest Corruption . | . . . Average Corruption . | . . . Corruption Purged . | . . . Corruption Blocked . | . . . Overload Shots . | . . . Overflow Damage . | . . . Projectiles . | . . . Explosions . | . . . Melee . | . . . Knockbacks 1 | . 1 . Impact 1 | . 1 . Kinetic . | . . . Secondary . | . . . Self-Inflicted Damage 10 | . 10 . Shots . | . . . Rammed 8 | 1 7 . Targets Rammed 8 | 1 7 . Kicked . | . . . Crushed . | . . . Highest Temperature 98 | 40 98 . Average Temperature 32 | 17 35 . Received Heat Transfer 423 | . 309 114 Siege Activations . | . . . Martial Activations . | . . . Shielding Activations . | . . . Robots Disrupted . | . . . Combat Hostiles . | . . . Robots Corrupted . | . . . Combat Hostiles . | . . . Parts Fried . | . . . Impact Corruptions . | . . . Robots Melted . | . . . Combat Hostiles . | . . . Parts Melted . | . . . Heat Transferred 1225 | 175 1050 . Parts Sabotaged . | . . . Parts Stolen . | . . . Parts Stripped . | . . . Power Chain Reactions . | . . . Alert | -11 -10 -10 ------- Run | Yrd Mat Sub Maximum Alert Level . | . . . Low Security (%) 100 | 100 100 . Level 1 . | . . . Level 2 . | . . . Level 3 . | . . . Level 4 . | . . . Level 5 . | . . . High Security . | . . . Max Security . | . . . Peak Influence 125 | 5 125 . Initial . | . . . Average 28 | . 31 . Influence Increases 443 | 15 378 50 Destroy 0b10 Robot/C 300 | . 260 40 Destroy 0b10 Robot/NC 35 | 15 20 . Destroy Leader 52 | . 42 10 Successful Hack 41 | . 41 . Lose Combat Pursuer 15 | . 15 . Influence Decreases 443 | 15 378 50 Time Decay 403 | 15 348 40 Lost Part 30 | . 30 . Lost Ally 10 | . . 10 Squads Dispatched 1 | . 1 . Investigation . | . . . Extermination . | . . . Reinforcement 1 | . 1 . Assault . | . . . Garrison . | . . . Intercept . | . . . Searches Triggered . | . . . Construction Impeded . | . . . Haulers Reinforced . | . . . Active Scanning Responses . | . . . Cargo Convoy Interrupts . | . . . Stealth | -11 -10 -10 --------- Run | Yrd Mat Sub Distress Signals 4 | . 4 . Communications Jammed . | . . . Distress Signals . | . . . Times Spotted 44 | . 32 12 Peak Tracking Total 7 | . 5 7 Tactical Retreats 1 | . 1 . Traps | -11 -10 -10 ------- Run | Yrd Mat Sub Traps Triggered . | . . . Indirectly . | . . . Trap Hack Attempts . | . . . Triggered . | . . . Disarmed . | . . . Reprogrammed . | . . . Reused . | . . . Traps Extracted . | . . . Installed . | . . . Triggered . | . . . Machines | -11 -10 -10 ---------- Run | Yrd Mat Sub Machines Disabled . | . . . Max in Single Turn . | . . . Machines Repaired . | . . . Machines Dismantled . | . . . Machines Sabotaged . | . . . Overloaded Fab Kills . | . . . Hacking | -11 -10 -10 --------- Run | Yrd Mat Sub Machines Accessed 6 | . 6 . Terminals 5 | . 5 . Fabricators . | . . . Repair Stations 1 | . 1 . Recycling Units . | . . . Scanalyzers . | . . . Garrison Access . | . . . Total Hacks 20 | . 20 . Successful 12 | . 12 . Failed 8 | . 8 . Catastrophic 1 | . 1 . Database Lockouts . | . . . Manual 15 | . 15 . Terminals 18 | . 18 . Fabricators . | . . . Repair Stations 2 | . 2 . Recycling Units . | . . . Scanalyzers . | . . . Garrison Access . | . . . Terminal Hacks 2 | . 2 . Prototype ID Bank 1 | . 1 . Locate Traps 1 | . 1 . Fabricator Hacks . | . . . Repair Station Hacks 2 | . 2 . Scan Component 1 | . 1 . Repair 1 | . 1 . Recycling Unit Hacks . | . . . Scanalyzer . | . . . Garrison Access Hacks . | . . . Unauthorized Hacks 8 | . 8 . Terminals 8 | . 8 . Assimilate 1 | . 1 . Botnet 1 | . 1 . Operators 1 | . 1 . Skim 5 | . 5 . Fabricators . | . . . Repair Stations . | . . . Recycling Units . | . . . Scanalyzers . | . . . Garrison Access . | . . . Data Cores Recovered . | . . . Used . | . . . Hacking Detections 5 | . 5 . Full Trace Events . | . . . Feedback Events . | . . . Feedback Blocked . | . . . Robot Schematics Acquired . | . . . Robots Built . | . . . Authchips . | . . . Time . | . . . Total Robot Build Rating . | . . . Part Schematics Acquired . | . . . Parts Built . | . . . Authchips . | . . . Time . | . . . Total Part Build Rating . | . . . Part Studies Acquired . | . . . Parts Repaired 1 | . 1 . Time 26 | . 26 . Parts Recycled . | . . . Recycled Matter . | . . . Retrieved Matter . | . . . Retrieved Components . | . . . Parts Scanalyzed . | . . . Part Schematics Acquired . | . . . Parts Damaged . | . . . Bothacking | -11 -10 -10 ------------ Run | Yrd Mat Sub Used RIF Installer . | . . . Robots Hacked . | . . . Non-combat . | . . . Combat . | . . . Robot Hacks Applied . | . . . Relay Couplers Released . | . . . Fabnet Peak Effective % . | . . . Robots Rewired . | . . . Allies Hacked . | . . . Hacks Repelled . | . . . Allies | -11 -10 -10 -------- Run | Yrd Mat Sub Total Allies 1 | . 1 . Largest Group 1 | . 1 1 Highest-Rated Group 9 | . 9 9 Highest-Rated Ally 9 | . 9 9 Total Orders . | . . . Ally Attacks . | . . . Total Damage . | . . . Kills . | . . . Allies Corrupted . | . . . Allies Melted . | . . . Intel | -11 -10 -10 ------- Run | Yrd Mat Sub Active Infowar (turns) 404 | 27 377 . Seismic 404 | 27 377 . Robot Analysis Total . | . . . Derelict Logs Recovered . | . . . Drone Launches . | . . . Drone Recoveries . | . . . Exploration | -11 -10 -10 ------------- Run | Yrd Mat Sub Turns Passed 2533 | 209 1630 694 Spaces Moved 956 | 100 603 253 Core 2 | 2 . . Treads 894 | 98 552 244 Legs . | . . . Wheels 60 | . 51 9 Hover . | . . . Flight . | . . . Fastest Speed 50 | 50 140 150 Average Speed 224 | 157 230 236 Slowest Speed 320 | 160 320 240 Overloaded Moves . | . . . Propulsion Burnouts . | . . . Robots Hopped . | . . . Potential Cave-ins . | . . . Cave-ins Triggered . | . . . Exploration Rate (%) 37 | 6 86 19 Regions Visited 2 Branch Regions 1 Pre-discovered Areas . | . . . Known Exits Taken 1 | . 1 . Unknown Exits Taken 1 | 1 . . Scrap Searched . | . . . Spaces Dug 6 | . . 6 Terrain Destroyed 15 | . . 15 Melee . | . . . Projectile . | . . . AOE 15 | . . 15 Terrain Rammed . | . . . Walls Destroyed . | . . . Machines Disabled . | . . . Actions | -11 -10 -10 --------- Run | Yrd Mat Sub Total 1161 | 126 737 298 Wait 50 | . 48 2 Move 954 | 99 602 253 Hop . | . . . Pick Up 23 | 6 16 1 Fast Attach 8 | 6 1 1 Attach 8 | 1 3 4 Detach 6 | . 1 5 Swap 2 | 1 1 . Drop 2 | . 2 . Fire 100 | 12 56 32 Melee . | . . . Ram 1 | . 1 . Kick . | . . . Crush 7 | 1 6 . Escape Stasis . | . . . Rewire . | . . . Trap . | . . . Miscellaneous . | . . . Route ------- -11/Scrapyard -10/Materials (discovered 5 exits: *Mat x3 / [*Min] / *Sub) -10/Subcaves (discovered 2 exits: Mat / [*Rec]) History --------- Turn | Location | Event 12 | -11/Scrapyard | Discovered new exit (range 15) 210 | -11/Scrapyard | Entered Materials 306 | -10/Materials | Build established: Mutant 607 | -10/Materials | Discovered new exit (range 16) 787 | -10/Materials | Repaired Lgt. Treads 895 | -10/Materials | Identified exit to Materials 895 | -10/Materials | Identified exit to Subcaves 928 | -10/Materials | Learned 2 Storage zone layouts 952 | -10/Materials | Learned 2 Mines zone layouts 967 | -10/Materials | Learned Storage emergency access door positions 1840 | -10/Materials | Entered Subcaves 1840 | -10/Subcaves | Accompanied by 1 ally 1841 | -10/Subcaves | Approached by a straggling Scientist 1841 | -10/Subcaves | Identified exit to Materials 2357 | -10/Subcaves | Core integrity fell below 50% 2474 | -10/Subcaves | Core integrity fell below 20% 2531 | -10/Subcaves | Discovered new exit (range 6) 2534 | -10/Subcaves | Destroyed by Autobeam Turret with Autobeam Last Messages --------------- 02362_ 7L-Z81(R) destroyed. 02368_ Subatomizers dissect the Sub. Monowheel. 02372_ Acquired 13 matter. 02382_ Subatomizers dissect the Sub. Monowheel. 02391_ Acquired Barrage Gun. 02423_ Acquired 10 matter. 02471_ Ion Engine destroyed. 02481_ MI-T2O(R) destroyed. 02481_ Switching to secondary target: EQ-2L9(R). 02484_ EQ-2L9(R) destroyed. 02491_ Acquired 34 matter. 02496_ Acquired 31 matter. 02503_ Acquired Sub. Power Source. 02531_ EXIT=FOUND 02532_ Subatomizers dissect the Disposable Heat Sink. 02534_ S-10 Pest destroyed. 02534_ Machine disabled. 02534_ S-10 Pest destroyed. 02534_ Machine disabled. 02534_ S-10 Pest destroyed. Map ----- +----------------------------------------------------+ | ?????????????????????????????????????????????????? | | ?????????????????????????????????????????????????? | | ?????????????????????????????????????????????????? | | ?????????????????????????????????????????????????? | | ?????????????????????????????????????????????????? | | ?????????????????????????????????????????????????? | | ?????????????????????????????????????????????????? | | ?????????????????????????????????????????????????? | | ?????????????????????????????????????????????????? | | ?????????????????????????????????????????????????? | | ?????????????????????????????????????????????????? | | ?????????????????????????????????????????? ?????? | | ???????????????????????????????????????? ?????? | | ??????????????????????????????????????" #????? | | ???????????????????????????######??? "" #????? | | ????????????????????????#### ##&## "" #????? | | ????????????????????????# & * #???? | | ????????????????????????## ##!!# ### #???? | | ?????????????????????????#% #####?##????????????? | | ?????????????????????????# #???????????????????? | | ????????????????????????## ##???????????????????? | | ????????????????????????# #???????????????????? | | ????????????????????????# ##########??????????? | | ????????????????????????## ;; ; "#?????????? | | ?????????????#???#??????# #?????????? | | ????????????## ### ?????#@ t= #?????????? | | ????????????? ????## ==%[ ????????? | | ???????????????# ???## s%[ * % ???????? | | ?????????????????# ?## =* ! ???????? | | ??????????????????# ## ; [t #?????????? | | ?????????????????## ## ; ??????????? | | ????????????????## """ #?#### "??????????? | | ????????????????# """" #??????#######????????? | | ????????????????# """"" ##??????#### ##???????? | | ????????????????# "| " " ####??? ##??????? | | ????????????? ## ="!## ##?? #??????? | | ??????????? # "" #?## "%& #?? ??????? | | ????????????????? "???##*! ### #????????? | | ????????????????? ????## #??????????? | | ???????????????????????# ##??????????? | | ???????????????????????#" #???????????? | | ???????????????????????## " ##???????????? | | ????????????????????????# "" ###????????###?? | | ???????????????????????# ##" ######????## ##? | | ???????????????????????# "##### ##???# ## | | ???????????????????????#""????##" ##### | | ???????????????????????#""?????##" ## | | ???????????????????????#""??????#" | | ???????????????????????#????????## | | ?????????????????????????????????#### # | +----------------------------------------------------+ Best States ------------- Heat Dissipation 25 Energy Generation 15 Energy Capacity 250 Matter Stores 300 Matter Capacity 300 Sight Range 16 Terrain Scan Density 10 Evasion (%) 40 Recoil Reduction 2 Item Schematics ----------------- None Robot Schematics ------------------ None Fabricated ------------ Nothing Repaired ---------- Lgt. Treads | 42% | -10/Materials Studied --------- None Alien Tech Used ----------------- None Achievements -------------- None Challenges ------------ None Game ------ Seed LongswordNetworkShell Manual? 0 Play Time 00:14:17 Cumulative 941.7 hours Start 2025.11.03 @ 19:46:07 End 2025.11.03 @ 19:59:21 Sessions 1 Manual Loads 0 Difficulty Rogue Special Mode None Game No. 1596 Rogue 1596 Adventurer 0 Explorer 0 Win Type - Total 92 Types 54/1/16/15/4/0/0/1/0/1 Lore% 92 Gallery% 83 Achievement% 57 Wizard Run 0 Options --------- Layout 0 ASCII 0 Keyboard 1 Movement Numpad Keybinds 1 Fullscreen 2 Font 18/SmallcapsGlow Map View 76x50 Zoom Use 0% Tactical HUD 1 Map Filters NONE Filters NONE Steam 1 RUN: 423a7c2a-1ae4-4fa9-9115-f9484879bee9